lending/lending_fUSD_20240807
["ID","MTS","AMOUNT","RATE_DAILY","PERIOD"]
[334380816,1723011040597,-159.09,9.982e-05,2]
[334380818,1723011040607,-270.8433797,0.0001,2]
[334380820,1723011040617,-150.0,0.00010109,2]
[334380822,1723011040626,-190.38,0.00010109,2]
[334380824,1723011040635,-619.95,0.00010454,2]
[334380826,1723011040645,-420.0,0.00010534,2]
[334380828,1723011040654,-420.0,0.00010534,2]
[334380830,1723011040663,-530.62,0.00010665,2]
[334380832,1723011040675,-300.6,0.00010665,2]
[334380834,1723011040684,-530.62,0.00010665,2]
[334380836,1723011040694,-533.44,0.00010665,2]
[334380838,1723011040703,-1000.0,0.00010773,2]
[334380840,1723011040713,-553.2921,0.0001079,2]
[334380842,1723011040722,-1358.10899,0.0001089,2]
[334380844,1723011040732,-323.31176038,0.000109,2]
[334380846,1723011040742,-200.0,0.00010973,2]
[334380848,1723011040751,-500.0,0.00010978,2]
[334380850,1723011040761,-166.44076565,0.00010978,2]
[334380852,1723011040776,-61597.1384422,0.00010992,2]
[334380854,1723011040788,-60932.9530134,0.00010992,2]
[334380856,1723011040798,-60268.7675845,0.00010992,2]
[334380858,1723011040807,-59604.5821556,0.00010992,2]
[334380860,1723011040816,-58940.3967267,0.00010992,2]
[334380862,1723011040826,-11331.7604083,0.00010994,2]
[334380864,1723011040835,-5950.99207965,0.00010999,2]
[334380866,1723011040845,-150.0,0.00010999,2]
[334380868,1723011040854,-1000.0,0.00010999,2]
[334380870,1723011040864,-500.0,0.00010999,2]
[334380872,1723011040873,-1160.39,0.00010999,2]
[334380874,1723011040882,-500.0,0.00010999,2]
[334380876,1723011040892,-500.0,0.00010999,2]
[334380878,1723011040901,-500.0,0.00010999,2]
[334380880,1723011040911,-500.0,0.00010999,2]
[334380882,1723011040921,-500.0,0.00010999,2]
[334380884,1723011040930,-500.0,0.00010999,2]
[334380886,1723011040939,-500.87104511,0.00010999,2]
[334380887,1723011040948,-1514.0,0.00011,2]
[334380889,1723011040957,-134804.46403785,0.00011,2]
[334380891,1723011040966,-5689002.28511414,0.00011,2]
[334380893,1723011040978,-120212.60806095,0.00011,2]
[334380897,1723011041001,-311.6,0.00011,2]
[334381152,1723011043229,-1122.81021144,0.00011,2]
[334381155,1723011043241,-306.91905118,0.00011,2]
[334381156,1723011043731,-26794.5,0.00011,2]
[334381258,1723011046197,-1365.0,0.00011,2]
[334381259,1723011046209,-2742.44016929,0.00011,2]
[334381260,1723011046225,-11380.15963816,0.00011,2]
[334381261,1723011046238,-251.24,0.00011,2]
[334381262,1723011046253,-4776.59933758,0.00011,2]
[334381263,1723011046274,-470.61999998,0.00011,2]
[334381264,1723011046432,-547.21738257,0.00011,2]
[334381265,1723011046444,-1000.18527722,0.00011,2]
[334381266,1723011046457,-5891.39520654,0.00011,2]
[334381287,1723011192839,500.0,0.00025,120]
[334381288,1723011197549,557.95,8.331e-05,2]
[334381289,1723011201805,500.0,0.00024998,120]
[334381290,1723011204942,200.0,0.00025,120]
[334381291,1723011332698,500.0,0.00025,60]
[334381295,1723011422783,500.0,0.00025,60]
[334381296,1723011517223,-1000.0,0.0001,10]
[334381297,1723011518671,500.0,0.00025,60]
[334381298,1723011539760,23900.0,9.477e-05,2]
[334381299,1723011641335,530.05,8.219e-05,2]
[334381304,1723011738006,-1256.92584908,9.962e-05,2]
[334381305,1723011738029,-332.76002447,9.979e-05,2]
[334381306,1723011738050,-1550.0,0.0001,2]
[334381307,1723011738073,-468.58,0.00010079,2]
[334381308,1723011738095,-468.58,0.00010081,2]
[334381309,1723011738118,-468.58,0.00010084,2]
[334381310,1723011738140,-468.58,0.00010087,2]
[334381311,1723011738163,-468.58,0.00010089,2]
[334381312,1723011738185,-468.58,0.00010092,2]
[334381313,1723011738209,-468.58,0.00010095,2]
[334381314,1723011738231,-150.0,0.00010096,2]
[334381315,1723011738252,-300.0,0.00010096,2]
[334381316,1723011738277,-468.58,0.00010097,2]
[334381317,1723011738298,-911.28,0.00010097,2]
[334381318,1723011738319,-694.54,0.00010097,2]
[334381319,1723011738341,-10532.51,0.00010097,2]
[334381320,1723011738366,-468.58,0.000101,2]
[334381321,1723011738387,-931.67,0.000101,2]
[334381322,1723011738410,-468.58,0.00010103,2]
[334381323,1723011738435,-468.58,0.00010105,2]
[334381324,1723011738462,-468.58,0.00010108,2]
[334381325,1723011738485,-468.58,0.00010111,2]
[334381326,1723011738508,-468.58,0.00010113,2]
[334381327,1723011738533,-468.58,0.00010116,2]
[334381328,1723011738555,-468.58,0.00010119,2]
[334381329,1723011738579,-247.69,0.00010121,2]
[334381330,1723011738605,-468.58,0.00010121,2]
[334381331,1723011738628,-468.58,0.00010124,2]
[334381332,1723011738651,-468.58,0.00010127,2]
[334381333,1723011738676,-468.58,0.00010129,2]
[334381334,1723011738699,-241.81,0.00010184,2]
[334381335,1723011738724,-400.0,0.00010267,2]
[334381336,1723011738748,-530.05,0.00010447,2]
[334381337,1723011738768,-150.0,0.0001081,2]
[334381338,1723011738794,-150.0,0.0001081,2]
[334381339,1723011738817,-300.44,0.0001081,2]
[334381340,1723011738838,-289.8548,0.000109,2]
[334381341,1723011738860,-675.4423,0.000109,2]
[334381342,1723011738882,-150.0,0.000109,2]
[334381343,1723011738904,-164.0422,0.000109,2]
[334381344,1723011738925,-4698.38482645,0.000109,2]
[334381346,1723011783661,1000.0,0.0002465,30]
[334381347,1723011798276,500.0,0.00024932,120]
[334381348,1723011836083,1500.0,0.00025,60]
[334381350,1723011872698,500.0,0.00025,60]
[334381351,1723011890162,700.0,0.0002465,30]
[334381374,1723012110067,477.04,8.219e-05,2]
[334381377,1723012138692,10279.42713509,8.219e-05,2]
[334381378,1723012146724,5000.0,0.00024657,30]
[334381397,1723012232170,-304.0,0.0001,2]
[334381398,1723012232180,-44.26422483,0.000101,2]
[334381399,1723012232316,-157.57577517,0.000101,2]
[334381400,1723012232326,-300.0,0.00010102,2]
[334381401,1723012232336,-203.23997056,0.00010103,2]
[334381402,1723012232348,-5178.6735,0.00010103,2]
[334381403,1723012232359,-5196.35838394,0.00010103,2]
[334381445,1723012238334,-2842.1781455,0.00010103,2]
[334381446,1723012238344,-680.0,0.00010162,2]
[334381447,1723012238355,-496.09306247,0.00010162,2]
[334381448,1723012238372,-12380.49861819,0.00010162,2]
[334381449,1723012238385,-250.0,0.00010181,2]
[334381450,1723012238397,-241.81,0.00010282,2]
[334381451,1723012238407,-477.04,0.00010481,2]
[334381452,1723012238416,-150.0,0.0001078,2]
[334381453,1723012238426,-43361.65138181,0.00010781,2]
[334381454,1723012238439,-526.17759152,0.00010781,2]
[334381455,1723012238451,-445.42957939,0.00010781,2]
[334381456,1723012238463,-264.23831784,0.00010781,2]
[334381457,1723012238479,-1089.05208853,0.00010781,2]
[334381458,1723012238490,-1028.52477935,0.00010781,2]
[334381459,1723012238503,-666.77284336,0.00010781,2]
[334381460,1723012238703,-11402.30971465,0.00010781,2]
[334381461,1723012238720,-6431.8290083,0.00010781,2]
[334381463,1723012238732,-34784.01469525,0.00010781,2]
[334381466,1723012238742,-153.47392,0.0001089,2]
[334381468,1723012238752,-289.8548,0.00010894,2]
[334381470,1723012238762,-4793.3327,0.000109,2]
[334381472,1723012238772,-500.8528,0.000109,2]
[334381474,1723012238782,-165.78634766,0.000109,2]
[334381475,1723012238792,-3462.99476947,0.000109,2]
[334381477,1723012238802,-212.80597628,0.000109,2]
[334381479,1723012238812,-7500.0,0.000109,2]
[334381481,1723012238822,-1546.78971901,0.000109,2]
[334381483,1723012238832,-893.70984476,0.000109,2]
[334381485,1723012238842,-1358.10899,0.0001095,2]
[334381487,1723012238851,-1745.6,0.00010959,2]
[334381489,1723012238862,-250.0,0.00010959,2]
[334381491,1723012238872,-769.62,0.00010959,2]
[334381493,1723012238882,-200.0,0.00010973,2]
[334381495,1723012238892,-6589.4863476,0.00010994,2]
[334381497,1723012238902,-9045.8903538,0.00010994,2]
[334381499,1723012238912,-2128.4977675,0.00010994,2]
[334381501,1723012238923,-2562.68096875,0.00010994,2]
[334381504,1723012238944,-14316.10407435,0.00010994,2]
[334381506,1723012238955,-760.0633678,0.00010998,2]
[334381508,1723012238965,-259.64363619,0.00010998,2]
[334381510,1723012238976,-500.0,0.00010999,2]
[334381512,1723012238986,-1000.0,0.00010999,2]
[334381514,1723012238997,-500.0,0.00010999,2]
[334381516,1723012239007,-500.0,0.00010999,2]
[334381518,1723012239018,-1112.04,0.00010999,2]
[334381520,1723012239028,-500.0,0.00010999,2]
[334381522,1723012239040,-1230.0,0.00011,2]
[334381524,1723012239050,-121324.01763406,0.00011,2]
[334381526,1723012239059,-5114.86422641,0.00011,2]
[334381609,1723012240295,-344.85681677,0.00011,2]
[334381610,1723012240419,-338.00388,0.00011,2]
[334381614,1723012240436,-568.26722571,0.00011,2]
[334381615,1723012240448,-635.20510333,0.00011,2]
[334381616,1723012240463,-688.15196471,0.00011,2]
[334381617,1723012240474,-10400.0,0.00011,2]
[334381618,1723012240506,-9096.64373114,0.00011,2]
[334381619,1723012240519,-8947.21879473,0.00011,2]
[334381620,1723012240532,-8943.78386462,0.00011,2]
[334381621,1723012240544,-9077.54866152,0.00011,2]
[334381622,1723012240557,-8943.84023489,0.00011,2]
[334381623,1723012240570,-13303.76171806,0.00011,2]
[334381624,1723012240583,-186580.76877543,0.00011,2]
[334381625,1723012240595,-58399.7265854,0.00011,2]
[334381626,1723012240608,-370429.12548462,0.00011,2]
[334381627,1723012240620,-3783.60980561,0.00011,2]
[334381628,1723012240636,-573.37954002,0.00011,2]
[334381629,1723012240648,-1968.21002332,0.00011,2]
[334381630,1723012240678,-2362.440229,0.00011,2]
[334381631,1723012240692,-857.69234347,0.00011,2]
[334381632,1723012240710,-469.092,0.00011,2]
[334381633,1723012240722,-813.78799327,0.00011,2]
[334381634,1723012240734,-312.60966571,0.00011,2]
[334381635,1723012240745,-3305.20038526,0.00011,2]
[334381636,1723012240759,-2809.89847193,0.00011,2]
[334381651,1723012243210,-4077.89601573,0.00011,2]
[334381653,1723012243256,-471.04371544,0.00011,2]
[334381654,1723012243269,-1189.55837346,0.00011,2]
[334381655,1723012243283,-5201.74655,0.00011,2]
[334381656,1723012243295,-899.54372878,0.00011,2]
[334381657,1723012243311,-566.35561271,0.00011,2]
[334381658,1723012243341,-264.980716,0.00011,2]
[334381659,1723012243386,-19145.94269767,0.00011,2]
[334381660,1723012244544,-485.305,0.00011,2]
[334381661,1723012244556,-1839.97617697,0.00011,2]
[334381662,1723012244567,-232950.0,0.00011,2]
[334381663,1723012244579,-240400.0,0.00011,2]
[334381664,1723012246358,-1105.0,0.00011,2]
[334381665,1723012246368,-4105.0,0.00011,2]
[334381666,1723012246400,-334966.8285945,0.00011,2]
[334381667,1723012246559,-5257.74258,0.00011,2]
[334381668,1723012246570,-1692.20728971,0.00011,2]
[334381675,1723012246925,-511.4223,0.00011,2]
[334381678,1723012400830,200.0,0.00025,120]
[334381679,1723012469783,500.0,0.00025,60]
[334381680,1723012551737,500.0,0.00025,60]
[334381681,1723012572816,467.8,8.219e-05,2]
[334381682,1723012621831,571.19856418,8.219e-05,2]
[334381683,1723012634420,971.77166547,8.219e-05,2]
[334381684,1723012667178,1309.46828647,8.219e-05,2]
[334381685,1723013051226,444.41,8.219e-05,2]
[334381687,1723013331875,198.15,9.49e-05,2]
[334381720,1723013433574,-502.502,9.651e-05,2]
[334381731,1723013433678,-41.498,9.651e-05,2]
[334381732,1723013433695,-299.2677431,9.888e-05,2]
[334381733,1723013433705,-152.98717,9.934e-05,2]
[334381734,1723013433714,-300.0,9.961e-05,2]
[334381735,1723013433723,-133.27706975,9.961e-05,2]
[334381736,1723013433735,-166.72293025,9.961e-05,2]
[334381737,1723013433745,-1446.03887695,0.0001,2]
[334381738,1723013433756,-103.96112305,0.0001,2]
[334381739,1723013433766,-150.0,0.00010027,2]
[334381740,1723013433776,-132.6021457,0.00010043,2]
[334381741,1723013433788,-23.1178543,0.00010043,2]
[334381742,1723013433798,-155.72,0.00010048,2]
[334381743,1723013433807,-155.72,0.00010053,2]
[334381744,1723013433816,-161.1821457,0.00010053,2]
[334381745,1723013433828,-189.9378543,0.00010053,2]
[334381746,1723013433838,-150.99,0.00010053,2]
[334381747,1723013433847,-1351.74,0.00010053,2]
[334381748,1723013433857,-846.90843805,0.00010057,2]
[334381749,1723013433872,-1517.42156195,0.00010057,2]
[334381750,1723013433883,-155.72,0.00010058,2]
[334381751,1723013433893,-5440.65,0.00010058,2]
[334381752,1723013433907,-155.72,0.00010063,2]
[334381753,1723013433916,-5557.07,0.00010063,2]
[334381754,1723013433927,-150.0,0.00010067,2]
[334381755,1723013433937,-155.72,0.00010068,2]
[334381756,1723013433947,-7601.98,0.00010068,2]
[334381757,1723013433958,-155.72,0.00010073,2]
[334381758,1723013433966,-155.72,0.00010078,2]
[334381760,1723013433976,-155.72,0.00010083,2]
[334381762,1723013433987,-155.72,0.00010088,2]
[334381764,1723013433996,-173.19,0.00010088,2]
[334381765,1723013434005,-155.72,0.00010093,2]
[334381767,1723013434015,-696.2,0.00010141,2]
[334381769,1723013434024,-201.88,0.00010179,2]
[334381770,1723013434035,-456.0,0.00010237,2]
[334381771,1723013434044,-2961.99521851,0.00010268,2]
[334381772,1723013434060,-374.3599999,0.00010268,2]
[334381773,1723013434071,-499.29,0.00010268,2]
[334381774,1723013434083,-994.65481035,0.00010268,2]
[334381787,1723013438492,-255.25499958,0.00010268,2]
[334381791,1723013438504,-1223.36416372,0.00010268,2]
[334381795,1723013438514,-426.02,0.00010278,2]
[334381799,1723013438523,-1061.04,0.00010278,2]
[334381801,1723013438533,-301.26,0.00010278,2]
[334381804,1723013438542,-150.0,0.00010278,2]
[334381807,1723013438551,-322.02,0.00010278,2]
[334381809,1723013438561,-444.41,0.00010456,2]
[334381811,1723013438570,-198.15,0.00010677,2]
[334381813,1723013438579,-6180.90809087,0.000108,2]
[334381815,1723013438590,-6632.12322803,0.000108,2]
[334381817,1723013438600,-544.0,0.00010857,2]
[334381819,1723013438610,-994.6548,0.00010881,2]
[334381821,1723013438619,-1217.36855,0.0001089,2]
[334381822,1723013438628,-1663.335,0.00010894,2]
[334381823,1723013438637,-964.1483,0.00010894,2]
[334381824,1723013438647,-3881.8354,0.000109,2]
[334381825,1723013438657,-172.22398976,0.000109,2]
[334381826,1723013438666,-315.23587299,0.000109,2]
[334381827,1723013438679,-1323.03801851,0.000109,2]
[334381828,1723013438688,-1006.0,0.000109,2]
[334381829,1723013438697,-186.00505385,0.000109,2]
[334381830,1723013438706,-420.0,0.00010957,2]
[334381831,1723013438715,-420.0,0.00010957,2]
[334381832,1723013438724,-195.26843417,0.00010973,2]
[334381833,1723013438733,-200.0,0.00010973,2]
[334381834,1723013438743,-1582.0,0.00010982,2]
[334381835,1723013438752,-1925.0,0.00010982,2]
[334381836,1723013438761,-622.0,0.00010982,2]
[334381837,1723013438770,-1256.0,0.00010982,2]
[334381838,1723013438779,-289.0,0.00010982,2]
[334381839,1723013438788,-21737.0,0.00010982,2]
[334381840,1723013438797,-1203.0,0.00010982,2]
[334381841,1723013438807,-5128.0,0.00010982,2]
[334381842,1723013438816,-5837.0,0.00010982,2]
[334381843,1723013438825,-3773.2638617,0.00010995,2]
[334381844,1723013438835,-3038.33161242,0.00010997,2]
[334381845,1723013438844,-370.563395,0.00010999,2]
[334381846,1723013438853,-414.57551756,0.00010999,2]
[334381847,1723013438863,-163.07134832,0.00010999,2]
[334381848,1723013438872,-500.0,0.00010999,2]
[334381849,1723013438882,-500.0,0.00010999,2]
[334381850,1723013438892,-151.0,0.00010999,2]
[334381851,1723013438905,-561.50383904,0.00010999,2]
[334381852,1723013438915,-500.0,0.00010999,2]
[334381853,1723013438928,-500.0,0.00010999,2]
[334381854,1723013438937,-500.0,0.00010999,2]
[334381855,1723013438946,-500.0,0.00010999,2]
[334381857,1723013438955,-500.0,0.00010999,2]
[334381858,1723013438964,-270.21,0.00010999,2]
[334381859,1723013438974,-1680.67,0.00010999,2]
[334381860,1723013438983,-500.0,0.00010999,2]
[334381861,1723013438993,-5045.230546,0.00010999,2]
[334381862,1723013439002,-993.0,0.00011,2]
[334381863,1723013439011,-109191.61587066,0.00011,2]
[334381864,1723013439020,-215767.52124489,0.00011,2]
[334381866,1723013439206,-579.81041134,0.00011,2]
[334381867,1723013439219,-609.1727775,0.00011,2]
[334381868,1723013439229,-532.88681086,0.00011,2]
[334381879,1723013439965,-1939.19935657,0.00011,2]
[334381881,1723013439978,-426.05,0.00011,2]
[334381882,1723013439998,-340.5598,0.00011,2]
[334381883,1723013440453,-1792.855,0.00011,2]
[334381886,1723013440469,-420.0,0.00011,2]
[334381888,1723013440481,-10205.52925018,0.00011,2]
[334381891,1723013440500,-1318.41819181,0.00011,2]
[334381898,1723013440598,-552.21950301,0.00010278,2]
[334381899,1723013440609,-4010.93506105,0.00010278,2]
[334381900,1723013440621,-1047.40601755,0.00010278,2]
[334381901,1723013440632,-9923.36606403,0.00010278,2]
[334381902,1723013440641,-15076.63393598,0.00011,2]
[334381903,1723013440652,-50159.10826821,0.00011,2]
[334381904,1723013440663,-1523.28943385,0.00011,2]
[334381905,1723013440676,-64076.82359592,0.00011,2]
[334381906,1723013440687,-670.37,0.00011,2]
[334381907,1723013442459,-4902493.027443,0.00011,2]
[334381908,1723013442470,-41358.24254163,0.00011,2]
[334381909,1723013442482,-72091.83589408,0.00011,2]
[334381910,1723013442493,-452.640023,0.00011,2]
[334381911,1723013442504,-645.18180464,0.00011,2]
[334381912,1723013442515,-50291.16759158,0.00011,2]
[334381913,1723013442526,-557.38108761,0.00011,2]
[334381914,1723013442538,-1439.21534214,0.00011,2]
[334381915,1723013442549,-205365.96272065,0.00011,2]
[334381916,1723013442565,-389.44550813,0.00011,2]
[334381917,1723013442576,-1015.75187423,0.00011,2]
[334381918,1723013442588,-13427.06878664,0.00011,2]
[334381919,1723013442599,-327.03743587,0.00011,2]
[334381920,1723013442610,-2463.81135,0.00011,2]
[334381921,1723013442622,-5106.5,0.00011,2]
[334381934,1723013443564,-495.17,0.00011,2]
[334381936,1723013443576,-169954.63274162,0.00011,2]
[334381937,1723013443587,-329.7004954,0.00011,2]
[334381938,1723013443630,-2240.0,0.00011,2]
[334381939,1723013443642,-316.8095931,0.00011,2]
[334381943,1723013444152,-2054.86128031,0.00011,2]
[334381944,1723013444163,-935.21484251,0.00011,2]
[334381945,1723013444174,-1901.6000012,0.00011,2]
[334381946,1723013444191,-1936.85323252,0.00011,2]
[334381947,1723013444209,-4416.60999958,0.00011,2]
[334381948,1723013444220,-416.359999,0.00011,2]
[334381949,1723013444231,-5030.0,0.00011,2]
[334381950,1723013444242,-1106.86169656,0.00011,2]
[334381951,1723013444253,-1400.0,0.00011,2]
[334381952,1723013444265,-12611.39880001,0.00011,2]
[334381953,1723013444277,-463898.18854087,0.00011,2]
[334381954,1723013444289,-33499.91300064,0.00011,2]
[334381955,1723013444300,-1025.62250347,0.00011,2]
[334381959,1723013448190,-938.0,0.00011,2]
[334381960,1723013448199,-9742.09944283,0.00011,2]
[334381961,1723013448218,-15565.41583439,0.00011,2]
[334381962,1723013448229,-892.54323916,0.00011,2]
[334381963,1723013448279,-4566.43182891,0.00011,2]
[334381964,1723013448290,-15002.08710001,0.00011,2]
[334381965,1723013448301,-930.0,0.00011,2]
[334381966,1723013448313,-607.97134023,0.00011,2]
[334381967,1723013448324,-2680.69504486,0.00011,2]
[334381968,1723013448335,-912.85999773,0.00011,2]
[334381969,1723013448371,-459.58986104,0.00011,2]
[334381970,1723013448383,-11415.284996,0.00011,2]
[334381971,1723013448395,-858.99079704,0.00011,2]
[334381972,1723013448406,-508.11053217,0.00011,2]
[334381973,1723013448417,-1004.84499967,0.00011,2]
[334381974,1723013448432,-4998.0,0.00011,2]
[334381975,1723013448449,-2414.68677028,0.00011,2]
[334381976,1723013448460,-2272.5,0.00011,2]
[334381977,1723013448472,-1357.51086529,0.00011,2]
[334381978,1723013448483,-1882.07323999,0.00011,2]
[334382040,1723013496550,170.123765,9.406e-05,2]
[334382054,1723013546177,519.83,8.327e-05,2]
[334382058,1723013598473,500.0,0.00024932,120]
[334382059,1723013601019,200.0,0.00024999,120]
[334382069,1723013749493,816.67,9.353e-05,2]
[334382070,1723013772804,500.0,9.285e-05,2]
[334382071,1723013788502,281.11,9.305e-05,2]
[334382072,1723013845517,180.44,9.311e-05,2]
[334382073,1723013884878,304.92,9.312e-05,2]
[334382074,1723013889095,484.74,9.305e-05,2]
[334382075,1723013908731,801.98,9.305e-05,2]
[334382083,1723014061106,250.0,9.375e-05,2]
[334382084,1723014073704,613.7,8.219e-05,2]
[334382085,1723014080877,23890.0,9.386e-05,2]
[334382087,1723014208843,1280.410507,0.000246,30]
[334382088,1723014231488,281.11,9.403e-05,2]
[334382089,1723014314191,180.44,9.391e-05,2]
[334382090,1723014326748,-170.123765,9.641e-05,2]
[334382091,1723014326770,-170.123765,9.876e-05,2]
[334382092,1723014326793,-342.48,9.957e-05,2]
[334382093,1723014326818,-342.48,9.959e-05,2]
[334382094,1723014326844,-342.48,9.962e-05,2]
[334382095,1723014326868,-342.48,9.965e-05,2]
[334382096,1723014326892,-342.48,9.967e-05,2]
[334382097,1723014326916,-342.48,9.97e-05,2]
[334382098,1723014326941,-342.48,9.972e-05,2]
[334382099,1723014326965,-300.0,9.973e-05,2]
[334382100,1723014326989,-2639.64,9.974e-05,2]
[334382101,1723014327014,-342.48,9.975e-05,2]
[334382102,1723014327036,-4645.77,9.975e-05,2]
[334382103,1723014327059,-513.15,9.975e-05,2]
[334382104,1723014327082,-342.48,9.978e-05,2]
[334382105,1723014327104,-342.48,9.98e-05,2]
[334382106,1723014327127,-342.48,9.983e-05,2]
[334382107,1723014327154,-342.48,9.986e-05,2]
[334382108,1723014327176,-342.48,9.988e-05,2]
[334382109,1723014327198,-342.48,9.991e-05,2]
[334382110,1723014327225,-342.48,9.994e-05,2]
[334382111,1723014327248,-342.48,9.996e-05,2]
[334382112,1723014327271,-342.48,9.999e-05,2]
[334382113,1723014327291,-1038.44267289,0.0001,2]
[334382114,1723014327316,-342.48,0.00010001,2]
[334382115,1723014327344,-342.48,0.00010004,2]
[334382116,1723014327367,-342.48,0.00010007,2]
[334382117,1723014327388,-192.592539,0.00010414,2]
[334382118,1723014327414,-618.332755,0.00010414,2]
[334382119,1723014327437,-176.068468,0.00010414,2]
[334382120,1723014327460,-714.725925,0.00010414,2]
[334382121,1723014327481,-506.511039,0.00010414,2]
[334382122,1723014327502,-180.205611,0.00010414,2]
[334382123,1723014327524,-927.499123,0.00010414,2]
[334382124,1723014327546,-476.483951,0.00010414,2]
[334382125,1723014327567,-176.068468,0.00010414,2]
[334382126,1723014327587,-150.0,0.00010414,2]
[334382127,1723014327608,-10000.0,0.00010436,2]
[334382128,1723014327629,-613.7,0.00010443,2]
[334382129,1723014327655,-281.11,0.00010468,2]
[334382130,1723014327677,-4843.82197517,0.00010534,2]
[334382131,1723014327697,-618.332755,0.00010544,2]
[334382132,1723014327719,-714.725925,0.00010544,2]
[334382133,1723014327740,-506.511039,0.00010544,2]
[334382134,1723014327761,-927.499123,0.00010544,2]
[334382135,1723014327782,-476.483951,0.00010544,2]
[334382136,1723014327803,-488.7728,0.00010665,2]
[334382137,1723014327824,-618.332755,0.00010674,2]
[334382138,1723014327847,-714.725925,0.00010674,2]
[334382139,1723014327869,-506.511039,0.00010674,2]
[334382140,1723014327892,-927.499123,0.00010674,2]
[334382141,1723014327919,-476.483951,0.00010674,2]
[334382142,1723014327943,-1000.0,0.00010765,2]
[334382143,1723014327965,-441.7725,0.000108,2]
[334382144,1723014327985,-2784.4308,0.000108,2]
[334382145,1723014328007,-500.0,0.000108,2]
[334382146,1723014328030,-8229.3478,0.000108,2]
[334382147,1723014328051,-1000.0,0.000108,2]
[334382148,1723014328073,-999.3626,0.000108,2]
[334382149,1723014328095,-18761.191,0.000108,2]
[334382150,1723014328116,-246.1944,0.000108,2]
[334382151,1723014328137,-2500.0,0.000108,2]
[334382152,1723014328167,-1225.44461026,0.000108,2]
[334382153,1723014328188,-3354.4,0.000108,2]
[334382154,1723014328212,-154.53334119,0.000108,2]
[334382155,1723014328235,-318.19023747,0.000108,2]
[334382156,1723014328257,-618.332755,0.00010804,2]
[334382157,1723014328279,-714.725925,0.00010804,2]
[334382158,1723014328300,-506.511039,0.00010804,2]
[334382159,1723014328323,-927.499123,0.00010804,2]
[334382160,1723014328345,-476.483951,0.00010804,2]
[334382161,1723014328368,-154.53334117,0.00010825,2]
[334382162,1723014328390,-1204.0,0.00010836,2]
[334382163,1723014328413,-1685.756,0.00010836,2]
[334382164,1723014328434,-21743.0,0.00010836,2]
[334382165,1723014328456,-154.53334117,0.0001085,2]
[334382166,1723014328485,-200.0,0.00010873,2]
[334382167,1723014328507,-154.53334117,0.00010875,2]
[334382168,1723014328530,-7500.0,0.00010897,2]
[334382169,1723014328551,-2172.591,0.000109,2]
[334382170,1723014328572,-4399.9908,0.000109,2]
[334382171,1723014328594,-245000.0,0.000109,2]
[334382172,1723014328615,-4365.69390637,0.000109,2]
[334382173,1723014328636,-17246.5029123,0.000109,2]
[334382174,1723014328659,-801.1271,0.000109,2]
[334382175,1723014328680,-23450.4505,0.000109,2]
[334382176,1723014328701,-100000.0,0.000109,2]
[334382177,1723014328722,-154.53334117,0.000109,2]
[334382178,1723014328744,-670.62158048,0.000109,2]
[334382179,1723014328764,-318.19023746,0.000109,2]
[334382180,1723014328785,-346.07755794,0.000109,2]
[334382181,1723014328806,-618.332755,0.00010934,2]
[334382182,1723014328829,-714.725925,0.00010934,2]
[334382183,1723014328851,-506.511039,0.00010934,2]
[334382184,1723014328873,-927.499123,0.00010934,2]